[Event "Titled Tuesday Blitz April 4 Late 2023"]
[White "MClarke95"]
[Black "marik_spb"]
[WhiteElo "2178"]
[BlackElo "2413"]
[Result "1-0"]
[Round "03"]
[TimeControl "180+2"]
[Date "2023.04.04"]
[WhiteClock "0:00:08"]
[BlackClock "0:00:08"]

1. d4 {[%clk 0:02:58]}  Nf6 {[%clk 0:02:59]} 2. c4 {[%clk 0:02:57]}  e6 {[%clk 0:03:00]} 3. Nf3 {[%clk 0:02:56]}  b6 {[%clk 0:02:59]} 4. g3 {[%clk 0:02:32]}  Bb7 {[%clk 0:02:58]} 5. Bg2 {[%clk 0:02:31]}  d5 {[%clk 0:02:58]} 6. O-O {[%clk 0:02:29]}  Be7 {[%clk 0:02:58]} 7. Qb3 {[%clk 0:02:09]}  O-O {[%clk 0:02:49]} 8. Nc3 {[%clk 0:02:09]}  Nbd7 {[%clk 0:02:43]} 9. Bf4 {[%clk 0:02:04]}  c5 {[%clk 0:01:29]} 10. Rfd1 {[%clk 0:02:02]}  Rc8 {[%clk 0:01:26]} 11. cxd5 {[%clk 0:01:57]}  c4 {[%clk 0:01:26]} 12. Qc2 {[%clk 0:01:32]}  Nxd5 {[%clk 0:01:26]} 13. Nxd5 {[%clk 0:01:30]}  exd5 {[%clk 0:01:24]} 14. Nd2 {[%clk 0:01:23]}  b5 {[%clk 0:01:24]} 15. e4 {[%clk 0:01:22]}  dxe4 {[%clk 0:01:20]} 16. Nxe4 {[%clk 0:01:22]}  Qb6 {[%clk 0:01:11]} 17. a4 {[%clk 0:01:11]}  b4 {[%clk 0:01:03]} 18. a5 {[%clk 0:01:09]}  Qa6 {[%clk 0:01:03]} 19. d5 {[%clk 0:00:54]}  Rfd8 {[%clk 0:00:57]} 20. d6 {[%clk 0:00:53]}  Bf8 {[%clk 0:00:56]} 21. Ng5 {[%clk 0:00:49]}  g6 {[%clk 0:00:46]} 22. Bh3 {[%clk 0:00:39]}  Qb5 {[%clk 0:00:36]} 23. Ne4 {[%clk 0:00:33]}  f5 {[%clk 0:00:30]} 24. Ng5 {[%clk 0:00:33]}  Qc6 {[%clk 0:00:28]} 25. f3 {[%clk 0:00:33]}  Bg7 {[%clk 0:00:25]} 26. Bg2 {[%clk 0:00:29]}  Re8 {[%clk 0:00:25]} 27. Re1 {[%clk 0:00:27]}  c3 {[%clk 0:00:24]} 28. b3 {[%clk 0:00:26]}  Qc5+ {[%clk 0:00:21]} 29. Kh1 {[%clk 0:00:25]}  Be5 {[%clk 0:00:16]} 30. Rad1 {[%clk 0:00:18]}  Bxf4 {[%clk 0:00:15]} 31. gxf4 {[%clk 0:00:19]}  Qxa5 {[%clk 0:00:14]} 32. Bf1 {[%clk 0:00:13]}  Qb6 {[%clk 0:00:11]} 33. Bc4+ {[%clk 0:00:13]}  Kg7 {[%clk 0:00:11]} 34. Ne6+ {[%clk 0:00:12]}  Kf6 {[%clk 0:00:12]} 35. Qe2 {[%clk 0:00:08]}  Nc5 {[%clk 0:00:09]} 36. Qe5+ {[%clk 0:00:07]}  Kf7 {[%clk 0:00:08]} 37. Qg7# {[%clk 0:00:08]} 1-0


[Site "https://www.chess.com"]

[Event "Titled Tuesday Blitz April 4 Late 2023"]
[White "ArtemDyachuk"]
[Black "Svicevic, Rastko"]
[BlackFideId "916315"]
[WhiteElo "2408"]
[BlackElo "2071"]
[Result "0-1"]
[Round "03"]
[TimeControl "180+2"]
[Date "2023.04.04"]
[WhiteClock "0:00:02"]
[BlackClock "0:00:04"]

1. Nf3 {[%clk 0:03:00]}  d5 {[%clk 0:02:55]} 2. e3 {[%clk 0:02:59]}  g6 {[%clk 0:02:52]} 3. c4 {[%clk 0:02:58]}  c6 {[%clk 0:02:49]} 4. Nc3 {[%clk 0:02:54]}  e6 {[%clk 0:02:47]} 5. d4 {[%clk 0:02:47]}  f5 {[%clk 0:02:47]} 6. Ne5 {[%clk 0:02:47]}  Nf6 {[%clk 0:02:46]} 7. h4 {[%clk 0:02:47]}  Nbd7 {[%clk 0:02:27]} 8. Nd3 {[%clk 0:02:26]}  dxc4 {[%clk 0:02:11]} 9. Nf4 {[%clk 0:02:24]}  Nb6 {[%clk 0:02:03]} 10. b3 {[%clk 0:01:40]}  Bb4 {[%clk 0:01:54]} 11. Bd2 {[%clk 0:01:01]}  Bxc3 {[%clk 0:01:49]} 12. Bxc3 {[%clk 0:01:01]}  Nbd5 {[%clk 0:01:50]} 13. Nxd5 {[%clk 0:00:55]}  Nxd5 {[%clk 0:01:47]} 14. Bd2 {[%clk 0:00:51]}  c3 {[%clk 0:01:45]} 15. Bc1 {[%clk 0:00:51]}  b5 {[%clk 0:01:46]} 16. h5 {[%clk 0:00:48]}  g5 {[%clk 0:01:41]} 17. h6 {[%clk 0:00:48]}  Qf6 {[%clk 0:01:41]} 18. Be2 {[%clk 0:00:28]}  a5 {[%clk 0:01:36]} 19. Rh5 {[%clk 0:00:26]}  Rg8 {[%clk 0:01:17]} 20. Bf3 {[%clk 0:00:24]}  g4 {[%clk 0:01:01]} 21. Be2 {[%clk 0:00:23]}  Qg6 {[%clk 0:01:02]} 22. Rh1 {[%clk 0:00:21]}  Ba6 {[%clk 0:00:56]} 23. a4 {[%clk 0:00:16]}  b4 {[%clk 0:00:54]} 24. Bxa6 {[%clk 0:00:16]}  Rxa6 {[%clk 0:00:54]} 25. Qd3 {[%clk 0:00:16]}  Nc7 {[%clk 0:00:46]} 26. g3 {[%clk 0:00:15]}  Kd7 {[%clk 0:00:32]} 27. e4 {[%clk 0:00:13]}  fxe4 {[%clk 0:00:29]} 28. Qc4 {[%clk 0:00:14]}  Raa8 {[%clk 0:00:22]} 29. Rh4 {[%clk 0:00:12]}  Nd5 {[%clk 0:00:20]} 30. Ra2 {[%clk 0:00:10]}  e3 {[%clk 0:00:20]} 31. Ra1 {[%clk 0:00:03]}  exf2+ {[%clk 0:00:19]} 32. Kxf2 {[%clk 0:00:02]}  Rgf8+ {[%clk 0:00:19]} 33. Kg1 {[%clk 0:00:02]}  Qc2 {[%clk 0:00:18]} 34. Rh2 {[%clk 0:00:01]}  Qd1+ {[%clk 0:00:17]} 35. Kg2 {[%clk 0:00:01]}  Qf3+ {[%clk 0:00:15]} 36. Kg1 {[%clk 0:00:02]}  Qxg3+ {[%clk 0:00:13]} 37. Rg2 {[%clk 0:00:02]}  Qe1+ {[%clk 0:00:13]} 38. Kh2 {[%clk 0:00:02]}  Qh4+ {[%clk 0:00:11]} 39. Kg1 {[%clk 0:00:02]}  Rf3 {[%clk 0:00:07]} 40. Qe2 {[%clk 0:00:02]}  Raf8 {[%clk 0:00:06]} 41. Qa6 {[%clk 0:00:01]}  Qe1+ {[%clk 0:00:04]} 42. Qf1 {[%clk 0:00:02]}  Rxf1+ {[%clk 0:00:04]} 43. Kh2 {[%clk 0:00:02]}  Rh1# {[%clk 0:00:04]} 0-1


[Site "https://www.chess.com"]

[Event "Titled Tuesday Blitz April 4 Late 2023"]
[White "Bongo Akanga Ndjila, Barthelemy"]
[Black "Polanco Nunez, Yoel Estarling"]
[WhiteFideId "10609431"]
[BlackFideId "6401783"]
[WhiteElo "1768"]
[BlackElo "2132"]
[Result "0-1"]
[Round "03"]
[TimeControl "180+2"]
[Date "2023.04.04"]
[WhiteClock "0:01:19"]
[BlackClock "0:01:41"]

1. d4 {[%clk 0:02:53]}  d5 {[%clk 0:02:59]} 2. c4 {[%clk 0:02:51]}  e6 {[%clk 0:02:58]} 3. Nc3 {[%clk 0:02:50]}  Be7 {[%clk 0:02:58]} 4. Nf3 {[%clk 0:02:49]}  Nf6 {[%clk 0:02:57]} 5. Bg5 {[%clk 0:02:48]}  O-O {[%clk 0:02:56]} 6. e3 {[%clk 0:02:48]}  c6 {[%clk 0:02:53]} 7. Rc1 {[%clk 0:02:46]}  Nbd7 {[%clk 0:02:53]} 8. Qc2 {[%clk 0:02:33]}  h6 {[%clk 0:02:48]} 9. Bh4 {[%clk 0:02:33]}  a6 {[%clk 0:02:47]} 10. c5 {[%clk 0:02:32]}  b6 {[%clk 0:02:47]} 11. b4 {[%clk 0:02:30]}  a5 {[%clk 0:02:38]} 12. a3 {[%clk 0:02:29]}  Bb7 {[%clk 0:02:37]} 13. Bd3 {[%clk 0:02:28]}  Re8 {[%clk 0:02:25]} 14. Ne5 {[%clk 0:02:21]}  Nxe5 {[%clk 0:02:23]} 15. dxe5 {[%clk 0:02:20]}  Nd7 {[%clk 0:02:23]} 16. Bxe7 {[%clk 0:02:17]}  Qxe7 {[%clk 0:02:24]} 17. Ne2 {[%clk 0:02:11]}  axb4 {[%clk 0:02:14]} 18. axb4 {[%clk 0:02:07]}  Nxe5 {[%clk 0:02:11]} 19. Bh7+ {[%clk 0:02:05]}  Kh8 {[%clk 0:02:11]} 20. Bd3 {[%clk 0:02:02]}  bxc5 {[%clk 0:02:07]} 21. bxc5 {[%clk 0:02:02]}  Qxc5 {[%clk 0:02:05]} 22. Qd1 {[%clk 0:01:47]}  Qb4+ {[%clk 0:01:57]} 23. Kf1 {[%clk 0:01:46]}  Nxd3 {[%clk 0:01:51]} 24. Qxd3 {[%clk 0:01:45]}  c5 {[%clk 0:01:50]} 25. f3 {[%clk 0:01:41]}  Ba6 {[%clk 0:01:45]} 26. Qc3 {[%clk 0:01:31]}  Bxe2+ {[%clk 0:01:41]} 27. Kxe2 {[%clk 0:01:31]}  Ra2+ {[%clk 0:01:41]} 28. Kd3 {[%clk 0:01:19]}  Qb5+ {[%clk 0:01:41]} 0-1


[Site "https://www.chess.com"]

[Event "Titled Tuesday Blitz April 4 Late 2023"]
[White "Rian, Kapriaga"]
[Black "Manu_ChessExcelsior"]
[WhiteFideId "7103263"]
[WhiteElo "2334"]
[BlackElo "2129"]
[Result "0-1"]
[Round "03"]
[TimeControl "180+2"]
[Date "2023.04.04"]
[WhiteClock "0:00:01"]
[BlackClock "0:00:28"]

1. d4 {[%clk 0:03:00]}  d5 {[%clk 0:02:58]} 2. Bf4 {[%clk 0:02:59]}  c5 {[%clk 0:02:57]} 3. e3 {[%clk 0:02:58]}  Nc6 {[%clk 0:02:55]} 4. c3 {[%clk 0:02:56]}  cxd4 {[%clk 0:02:55]} 5. exd4 {[%clk 0:02:55]}  Bf5 {[%clk 0:02:54]} 6. Nf3 {[%clk 0:02:52]}  Nf6 {[%clk 0:02:53]} 7. Be2 {[%clk 0:02:51]}  e6 {[%clk 0:02:54]} 8. O-O {[%clk 0:02:50]}  Bd6 {[%clk 0:02:53]} 9. Bxd6 {[%clk 0:02:49]}  Qxd6 {[%clk 0:02:53]} 10. Nh4 {[%clk 0:02:39]}  Bg6 {[%clk 0:02:39]} 11. Nd2 {[%clk 0:02:33]}  O-O-O {[%clk 0:02:28]} 12. h3 {[%clk 0:02:24]}  Kb8 {[%clk 0:02:25]} 13. a4 {[%clk 0:02:17]}  Ne4 {[%clk 0:02:18]} 14. Nxg6 {[%clk 0:02:14]}  hxg6 {[%clk 0:02:18]} 15. Nxe4 {[%clk 0:02:12]}  dxe4 {[%clk 0:02:19]} 16. Bb5 {[%clk 0:01:56]}  Ne7 {[%clk 0:02:03]} 17. Qe2 {[%clk 0:01:49]}  Qf4 {[%clk 0:01:53]} 18. Rfe1 {[%clk 0:01:37]}  f5 {[%clk 0:01:52]} 19. a5 {[%clk 0:01:35]}  g5 {[%clk 0:01:48]} 20. Ra3 {[%clk 0:01:08]}  g4 {[%clk 0:01:33]} 21. g3 {[%clk 0:01:06]}  Qh6 {[%clk 0:01:19]} 22. Qf1 {[%clk 0:00:43]}  gxh3 {[%clk 0:01:17]} 23. Rb3 {[%clk 0:00:27]}  h2+ {[%clk 0:01:12]} 24. Kh1 {[%clk 0:00:26]}  Rc8 {[%clk 0:00:53]} 25. Be2 {[%clk 0:00:11]}  Nc6 {[%clk 0:00:43]} 26. Ra1 {[%clk 0:00:09]}  f4 {[%clk 0:00:39]} 27. Bb5 {[%clk 0:00:05]}  Qg5 {[%clk 0:00:34]} 28. Bxc6 {[%clk 0:00:03]}  Rxc6 {[%clk 0:00:34]} 29. Qb5 {[%clk 0:00:01]}  Qxb5 {[%clk 0:00:28]} 0-1


[Site "https://www.chess.com"]

[Event "Titled Tuesday Blitz April 4 Late 2023"]
[White "Oliveira, Tiago Batista"]
[Black "Jiganchine, Roman"]
[WhiteFideId "2108291"]
[BlackFideId "2603667"]
[WhiteElo "1962"]
[BlackElo "2315"]
[Result "1-0"]
[Round "03"]
[TimeControl "180+2"]
[Date "2023.04.04"]
[WhiteClock "0:00:04"]
[BlackClock "0:00:07"]

1. d4 {[%clk 0:03:00]}  d5 {[%clk 0:02:59]} 2. c4 {[%clk 0:02:57]}  e6 {[%clk 0:02:59]} 3. Nf3 {[%clk 0:02:55]}  Nf6 {[%clk 0:02:58]} 4. g3 {[%clk 0:02:33]}  Bd6 {[%clk 0:02:53]} 5. Nbd2 {[%clk 0:02:30]}  O-O {[%clk 0:02:52]} 6. Bg2 {[%clk 0:02:30]}  h6 {[%clk 0:02:51]} 7. O-O {[%clk 0:02:30]}  Re8 {[%clk 0:02:51]} 8. Qc2 {[%clk 0:02:30]}  Nc6 {[%clk 0:02:50]} 9. e4 {[%clk 0:02:14]}  dxe4 {[%clk 0:02:43]} 10. Nxe4 {[%clk 0:02:14]}  Nxe4 {[%clk 0:02:43]} 11. Qxe4 {[%clk 0:02:13]}  e5 {[%clk 0:02:40]} 12. d5 {[%clk 0:01:59]}  f5 {[%clk 0:02:24]} 13. Qb1 {[%clk 0:01:48]}  Ne7 {[%clk 0:01:49]} 14. b4 {[%clk 0:01:43]}  e4 {[%clk 0:01:39]} 15. Nd4 {[%clk 0:01:35]}  Be5 {[%clk 0:01:39]} 16. Bb2 {[%clk 0:01:35]}  Ng6 {[%clk 0:01:33]} 17. Rd1 {[%clk 0:01:31]}  Qe7 {[%clk 0:01:28]} 18. a3 {[%clk 0:01:08]}  a5 {[%clk 0:01:27]} 19. c5 {[%clk 0:01:01]}  Qf6 {[%clk 0:01:20]} 20. Qc2 {[%clk 0:00:54]}  Bd7 {[%clk 0:01:14]} 21. Rac1 {[%clk 0:00:41]}  axb4 {[%clk 0:01:10]} 22. c6 {[%clk 0:00:38]}  bxc6 {[%clk 0:01:04]} 23. dxc6 {[%clk 0:00:26]}  Be6 {[%clk 0:00:40]} 24. Nxe6 {[%clk 0:00:25]}  Bxb2 {[%clk 0:00:37]} 25. Nxc7 {[%clk 0:00:20]}  b3 {[%clk 0:00:22]} 26. Qxb3+ {[%clk 0:00:18]}  Kh7 {[%clk 0:00:21]} 27. Nxe8 {[%clk 0:00:17]}  Rxe8 {[%clk 0:00:21]} 28. c7 {[%clk 0:00:18]}  e3 {[%clk 0:00:16]} 29. Rc6 {[%clk 0:00:14]}  exf2+ {[%clk 0:00:15]} 30. Kf1 {[%clk 0:00:13]}  Qe7 {[%clk 0:00:13]} 31. Kxf2 {[%clk 0:00:09]}  Qe2+ {[%clk 0:00:12]} 32. Kg1 {[%clk 0:00:09]}  Bd4+ {[%clk 0:00:10]} 33. Kh1 {[%clk 0:00:08]}  Qe1+ {[%clk 0:00:10]} 34. Rxe1 {[%clk 0:00:07]}  Rxe1+ {[%clk 0:00:11]} 35. Bf1 {[%clk 0:00:08]}  Rxf1+ {[%clk 0:00:11]} 36. Kg2 {[%clk 0:00:08]}  Rf2+ {[%clk 0:00:11]} 37. Kh3 {[%clk 0:00:08]}  Ne5 {[%clk 0:00:09]} 38. Qc2 {[%clk 0:00:06]}  Ng4 {[%clk 0:00:08]} 39. Kh4 {[%clk 0:00:06]}  Rxh2+ {[%clk 0:00:07]} 40. Qxh2 {[%clk 0:00:06]}  g5+ {[%clk 0:00:08]} 41. Kh5 {[%clk 0:00:05]}  Nf6+ {[%clk 0:00:07]} 42. Rxf6 {[%clk 0:00:05]}  Bxf6 {[%clk 0:00:07]} 43. c8=Q {[%clk 0:00:04]} 1-0


[Site "https://www.chess.com"]

[Event "Titled Tuesday Blitz April 4 Late 2023"]
[White "Michalski, Olaf"]
[Black "Aung Thant Zin"]
[WhiteFideId "1106740"]
[BlackFideId "13000063"]
[WhiteElo "2173"]
[BlackElo "2278"]
[Result "1-0"]
[Round "03"]
[TimeControl "180+2"]
[Date "2023.04.04"]
[WhiteClock "0:00:22"]
[BlackClock "0:00:09"]

1. d4 {[%clk 0:03:00]}  Nf6 {[%clk 0:02:58]} 2. Nf3 {[%clk 0:02:58]}  e6 {[%clk 0:02:59]} 3. Bf4 {[%clk 0:02:58]}  d5 {[%clk 0:02:58]} 4. e3 {[%clk 0:02:47]}  c5 {[%clk 0:02:57]} 5. c3 {[%clk 0:02:41]}  Nc6 {[%clk 0:02:57]} 6. Nbd2 {[%clk 0:02:41]}  Bd6 {[%clk 0:02:57]} 7. Bg3 {[%clk 0:02:38]}  O-O {[%clk 0:02:55]} 8. Bd3 {[%clk 0:02:38]}  Qe7 {[%clk 0:02:54]} 9. Ne5 {[%clk 0:02:33]}  Nd7 {[%clk 0:02:40]} 10. Nxc6 {[%clk 0:01:35]}  bxc6 {[%clk 0:02:40]} 11. Qh5 {[%clk 0:01:33]}  g6 {[%clk 0:02:37]} 12. Qh6 {[%clk 0:01:31]}  e5 {[%clk 0:02:30]} 13. dxe5 {[%clk 0:01:18]}  Nxe5 {[%clk 0:02:29]} 14. Be2 {[%clk 0:01:06]}  Bf5 {[%clk 0:01:54]} 15. O-O {[%clk 0:00:51]}  Rab8 {[%clk 0:01:24]} 16. b3 {[%clk 0:00:48]}  Qe6 {[%clk 0:01:05]} 17. Nf3 {[%clk 0:00:42]}  Ng4 {[%clk 0:01:01]} 18. Qh4 {[%clk 0:00:39]}  f6 {[%clk 0:00:19]} 19. Bxd6 {[%clk 0:00:34]}  Qxd6 {[%clk 0:00:19]} 20. Rad1 {[%clk 0:00:34]}  Qe6 {[%clk 0:00:17]} 21. Rfe1 {[%clk 0:00:31]}  Rbe8 {[%clk 0:00:16]} 22. c4 {[%clk 0:00:30]}  g5 {[%clk 0:00:13]} 23. Qg3 {[%clk 0:00:29]}  h5 {[%clk 0:00:13]} 24. cxd5 {[%clk 0:00:28]}  cxd5 {[%clk 0:00:13]} 25. Rxd5 {[%clk 0:00:28]}  Qxd5 {[%clk 0:00:11]} 26. Bc4 {[%clk 0:00:28]}  Qxc4 {[%clk 0:00:11]} 27. bxc4 {[%clk 0:00:28]}  h4 {[%clk 0:00:10]} 28. Qc7 {[%clk 0:00:23]}  Rf7 {[%clk 0:00:10]} 29. Qxc5 {[%clk 0:00:22]}  Rc8 {[%clk 0:00:09]} 30. Qxf5 {[%clk 0:00:22]} 1-0


[Site "https://www.chess.com"]

[Event "Titled Tuesday Blitz April 4 Late 2023"]
[White "Bachmann, Axel"]
[Black "Erigaisi Arjun"]
[WhiteFideId "3700488"]
[BlackFideId "35009192"]
[WhiteElo "2605"]
[BlackElo "2737"]
[Result "0-1"]
[Round "04"]
[TimeControl "180+2"]
[Date "2023.04.04"]
[WhiteClock "0:00:01"]
[BlackClock "0:00:04"]

1. Nf3 {[%clk 0:02:59]}  d6 {[%clk 0:02:58]} 2. e4 {[%clk 0:02:55]}  g6 {[%clk 0:02:55]} 3. d4 {[%clk 0:02:55]}  Bg7 {[%clk 0:02:56]} 4. Bc4 {[%clk 0:02:55]}  Nc6 {[%clk 0:02:52]} 5. c3 {[%clk 0:02:52]}  Nf6 {[%clk 0:02:50]} 6. Qe2 {[%clk 0:02:51]}  e5 {[%clk 0:02:50]} 7. dxe5 {[%clk 0:02:50]}  Nxe5 {[%clk 0:02:51]} 8. Nxe5 {[%clk 0:02:50]}  dxe5 {[%clk 0:02:52]} 9. h3 {[%clk 0:02:46]}  Nh5 {[%clk 0:02:42]} 10. O-O {[%clk 0:02:44]}  O-O {[%clk 0:02:41]} 11. Be3 {[%clk 0:02:41]}  Nf4 {[%clk 0:02:35]} 12. Qf3 {[%clk 0:02:36]}  Bh6 {[%clk 0:02:27]} 13. Rd1 {[%clk 0:02:22]}  Qh4 {[%clk 0:02:15]} 14. Na3 {[%clk 0:02:13]}  a6 {[%clk 0:02:03]} 15. Nc2 {[%clk 0:02:11]}  Qe7 {[%clk 0:01:43]} 16. Nb4 {[%clk 0:02:05]}  Kg7 {[%clk 0:01:40]} 17. Nd5 {[%clk 0:01:38]}  Nxd5 {[%clk 0:01:40]} 18. Bxh6+ {[%clk 0:01:38]}  Kxh6 {[%clk 0:01:40]} 19. Rxd5 {[%clk 0:01:31]}  c6 {[%clk 0:01:39]} 20. Rd2 {[%clk 0:01:25]}  b5 {[%clk 0:01:24]} 21. Bb3 {[%clk 0:01:25]}  a5 {[%clk 0:01:24]} 22. a3 {[%clk 0:01:25]}  c5 {[%clk 0:01:10]} 23. Qe3+ {[%clk 0:01:22]}  Kg7 {[%clk 0:01:07]} 24. a4 {[%clk 0:00:47]}  c4 {[%clk 0:00:54]} 25. Ba2 {[%clk 0:00:47]}  Be6 {[%clk 0:00:53]} 26. axb5 {[%clk 0:00:45]}  Rfb8 {[%clk 0:00:49]} 27. b6 {[%clk 0:00:16]}  Ra6 {[%clk 0:00:49]} 28. Qg3 {[%clk 0:00:16]}  Qc5 {[%clk 0:00:45]} 29. Rd5 {[%clk 0:00:13]}  Qxb6 {[%clk 0:00:31]} 30. Rxe5 {[%clk 0:00:07]}  Rd8 {[%clk 0:00:22]} 31. Qh4 {[%clk 0:00:03]}  Rd2 {[%clk 0:00:20]} 32. Rf1 {[%clk 0:00:03]}  Qxb2 {[%clk 0:00:19]} 33. Bb1 {[%clk 0:00:03]}  Qxc3 {[%clk 0:00:16]} 34. Rh5 {[%clk 0:00:04]}  gxh5 {[%clk 0:00:15]} 35. Qg5+ {[%clk 0:00:04]}  Kf8 {[%clk 0:00:15]} 36. Qc5+ {[%clk 0:00:05]}  Kg8 {[%clk 0:00:12]} 37. Qg5+ {[%clk 0:00:04]}  Kh8 {[%clk 0:00:11]} 38. e5 {[%clk 0:00:02]}  Bc8 {[%clk 0:00:07]} 39. Qe7 {[%clk 0:00:02]}  Kg7 {[%clk 0:00:03]} 40. Qg5+ {[%clk 0:00:02]}  Rg6 {[%clk 0:00:03]} 41. Bxg6 {[%clk 0:00:02]}  hxg6 {[%clk 0:00:04]} 42. Qf6+ {[%clk 0:00:03]}  Kg8 {[%clk 0:00:05]} 43. e6 {[%clk 0:00:01]}  Qxf6 {[%clk 0:00:04]} 0-1


[Site "https://www.chess.com"]

[Event "Titled Tuesday Blitz April 4 Late 2023"]
[White "Melkumyan, Hrant"]
[Black "Duda, Jan-Krzysztof"]
[WhiteFideId "13302485"]
[BlackFideId "1170546"]
[WhiteElo "2604"]
[BlackElo "2790"]
[Result "0-1"]
[Round "04"]
[TimeControl "180+2"]
[Date "2023.04.04"]
[WhiteClock "0:00:04"]
[BlackClock "0:00:05"]

1. d4 {[%clk 0:03:00]}  Nf6 {[%clk 0:03:00]} 2. c4 {[%clk 0:03:01]}  g6 {[%clk 0:03:01]} 3. Nc3 {[%clk 0:02:59]}  d5 {[%clk 0:03:01]} 4. Nf3 {[%clk 0:02:58]}  Bg7 {[%clk 0:03:01]} 5. Bg5 {[%clk 0:02:59]}  Ne4 {[%clk 0:02:58]} 6. Bf4 {[%clk 0:02:59]}  Nxc3 {[%clk 0:02:58]} 7. bxc3 {[%clk 0:03:00]}  c5 {[%clk 0:02:55]} 8. e3 {[%clk 0:02:58]}  O-O {[%clk 0:02:50]} 9. cxd5 {[%clk 0:02:58]}  Qxd5 {[%clk 0:02:51]} 10. Be2 {[%clk 0:02:58]}  Nc6 {[%clk 0:02:49]} 11. O-O {[%clk 0:02:54]}  cxd4 {[%clk 0:02:45]} 12. cxd4 {[%clk 0:02:55]}  Bf5 {[%clk 0:02:45]} 13. Qb3 {[%clk 0:02:53]}  Qxb3 {[%clk 0:02:36]} 14. axb3 {[%clk 0:02:54]}  Rfd8 {[%clk 0:02:36]} 15. Rfc1 {[%clk 0:02:52]}  a6 {[%clk 0:02:31]} 16. h3 {[%clk 0:02:49]}  Rac8 {[%clk 0:02:30]} 17. g4 {[%clk 0:02:48]}  Be6 {[%clk 0:02:08]} 18. Bc4 {[%clk 0:02:37]}  Bd7 {[%clk 0:02:07]} 19. Ng5 {[%clk 0:02:31]}  Be8 {[%clk 0:02:06]} 20. Ne4 {[%clk 0:01:55]}  e5 {[%clk 0:01:56]} 21. Bg5 {[%clk 0:01:55]}  exd4 {[%clk 0:01:48]} 22. Bxd8 {[%clk 0:01:36]}  Rxd8 {[%clk 0:01:49]} 23. Rd1 {[%clk 0:01:37]}  d3 {[%clk 0:01:16]} 24. Rac1 {[%clk 0:01:22]}  Nb4 {[%clk 0:01:14]} 25. Nc5 {[%clk 0:01:13]}  d2 {[%clk 0:00:47]} 26. Rb1 {[%clk 0:01:14]}  b5 {[%clk 0:00:43]} 27. Be2 {[%clk 0:01:08]}  Bc6 {[%clk 0:00:44]} 28. Nd3 {[%clk 0:00:33]}  Bc3 {[%clk 0:00:44]} 29. Nxb4 {[%clk 0:00:31]}  Bxb4 {[%clk 0:00:45]} 30. Rb2 {[%clk 0:00:28]}  Kf8 {[%clk 0:00:33]} 31. Kf1 {[%clk 0:00:24]}  Ke7 {[%clk 0:00:31]} 32. f4 {[%clk 0:00:22]}  a5 {[%clk 0:00:24]} 33. Kf2 {[%clk 0:00:22]}  Bc3 {[%clk 0:00:20]} 34. Rc2 {[%clk 0:00:20]}  b4 {[%clk 0:00:20]} 35. Ra2 {[%clk 0:00:17]}  Bd5 {[%clk 0:00:16]} 36. Rxa5 {[%clk 0:00:03]}  Bxb3 {[%clk 0:00:16]} 37. Ra7+ {[%clk 0:00:04]}  Rd7 {[%clk 0:00:15]} 38. Rxd7+ {[%clk 0:00:03]}  Kxd7 {[%clk 0:00:16]} 39. Bf3 {[%clk 0:00:03]}  Ba4 {[%clk 0:00:07]} 40. Ke2 {[%clk 0:00:04]}  Bb5+ {[%clk 0:00:07]} 41. Kf2 {[%clk 0:00:04]}  b3 {[%clk 0:00:08]} 42. Be2 {[%clk 0:00:03]}  Ba4 {[%clk 0:00:08]} 43. Bd3 {[%clk 0:00:03]}  b2 {[%clk 0:00:06]} 44. Rg1 {[%clk 0:00:04]}  d1=Q {[%clk 0:00:05]} 0-1


[Site "https://www.chess.com"]

[Event "Titled Tuesday Blitz April 4 Late 2023"]
[White "Fedoseev, Vladimir"]
[Black "Svane, Frederik"]
[WhiteFideId "24130737"]
[BlackFideId "12923044"]
[WhiteElo "2752"]
[BlackElo "2502"]
[Result "1-0"]
[Round "04"]
[TimeControl "180+2"]
[Date "2023.04.04"]
[WhiteClock "0:00:05"]
[BlackClock "0:00:39"]

1. b4 {[%clk 0:03:00]}  e6 {[%clk 0:02:59]} 2. Bb2 {[%clk 0:03:00]}  Nf6 {[%clk 0:02:58]} 3. b5 {[%clk 0:02:57]}  d5 {[%clk 0:02:55]} 4. e3 {[%clk 0:02:56]}  Be7 {[%clk 0:02:55]} 5. c4 {[%clk 0:02:54]}  O-O {[%clk 0:02:55]} 6. Nf3 {[%clk 0:02:54]}  c5 {[%clk 0:02:54]} 7. a4 {[%clk 0:02:46]}  b6 {[%clk 0:02:46]} 8. a5 {[%clk 0:02:42]}  bxa5 {[%clk 0:02:40]} 9. Bc3 {[%clk 0:02:31]}  Bb7 {[%clk 0:02:37]} 10. Bxa5 {[%clk 0:02:23]}  Qd6 {[%clk 0:02:37]} 11. Be2 {[%clk 0:02:13]}  d4 {[%clk 0:02:27]} 12. exd4 {[%clk 0:02:12]}  cxd4 {[%clk 0:02:28]} 13. d3 {[%clk 0:02:11]}  a6 {[%clk 0:02:26]} 14. Na3 {[%clk 0:02:10]}  Qd7 {[%clk 0:01:56]} 15. bxa6 {[%clk 0:01:40]}  Rxa6 {[%clk 0:01:57]} 16. Nc2 {[%clk 0:01:32]}  Nc6 {[%clk 0:01:54]} 17. Bd2 {[%clk 0:01:32]}  Rxa1 {[%clk 0:01:52]} 18. Qxa1 {[%clk 0:01:30]}  e5 {[%clk 0:01:53]} 19. O-O {[%clk 0:01:29]}  e4 {[%clk 0:01:50]} 20. Nfxd4 {[%clk 0:00:59]}  exd3 {[%clk 0:01:50]} 21. Bxd3 {[%clk 0:00:59]}  Nxd4 {[%clk 0:01:43]} 22. Nxd4 {[%clk 0:00:24]}  Bc5 {[%clk 0:01:34]} 23. Be3 {[%clk 0:00:16]}  Rd8 {[%clk 0:01:34]} 24. Rd1 {[%clk 0:00:08]}  Ng4 {[%clk 0:00:51]} 25. Bf5 {[%clk 0:00:07]}  Nxe3 {[%clk 0:00:51]} 26. Bxd7 {[%clk 0:00:07]}  Nxd1 {[%clk 0:00:52]} 27. Nf5 {[%clk 0:00:06]}  Bxf2+ {[%clk 0:00:47]} 28. Kf1 {[%clk 0:00:05]}  f6 {[%clk 0:00:39]} 29. Qxd1 {[%clk 0:00:05]} 1-0


[Site "https://www.chess.com"]